bitfinex-derivatives/quotes_ETHF0:USTF0_20230104
["timestamp","ask_amount","ask_price","bid_price","bid_amount"]
[1672837405150,2.38762323,1251.5,1251.4,11.29429799]
[1672837408293,2.38762323,1251.6,1251.4,12.50371339]
[1672837408512,2.38762323,1251.6,1251.5,4.59050267]
[1672837408821,2.38762323,1251.6,1251.5,3.3939016]
[1672837409040,2.38762323,1251.6,1251.5,4.59053066]
[1672837409874,2.38762323,1251.6,1251.5,4.59047893]
[1672837410087,2.38762323,1251.6,1251.5,3.3939016]
[1672837413548,5.36915012,1251.6,1251.5,2.79545683]
[1672837413966,5.36915012,1251.6,1251.5,4.59035843]
[1672837414394,2.38762323,1251.6,1251.5,4.59035843]
[1672837414807,2.38762323,1251.6,1251.5,4.59032784]
[1672837416385,2.38762323,1251.6,1251.5,7.59762784]
[1672837416913,2.38762323,1251.6,1251.5,6.4012016]
[1672837418912,2.38762323,1251.6,1251.5,3.3939016]
[1672837419121,2.38762323,1251.6,1251.5,6.4012016]
[1672837420381,2.38762323,1251.6,1251.5,7.59773747]
[1672837422900,2.38762323,1251.6,1251.5,8.79421538]
[1672837423426,5.36915012,1251.6,1251.5,8.79421538]
[1672837424369,2.38762323,1251.6,1251.5,8.79443336]
[1672837424683,2.38762323,1251.6,1251.5,8.79442038]
[1672837425219,2.38762323,1251.6,1251.5,7.59773747]
[1672837425417,5.36915012,1251.6,1251.5,7.59773747]
[1672837425832,2.38762323,1251.6,1251.5,9.99087918]
[1672837427313,2.38762323,1251.6,1251.5,7.59773747]
[1672837428044,2.38762323,1251.6,1251.5,9.99087918]
[1672837430043,2.38762323,1251.6,1251.5,8.19597758]
[1672837432249,2.38449498,1251.6,1251.5,8.19597758]
[1672837433199,2.38449498,1251.6,1251.5,9.61220326]
[1672837433518,2.38449498,1251.6,1251.5,9.61220373]
[1672837433828,2.38449498,1251.6,1251.5,9.61219415]
[1672837434235,7.08052689,1251.8,1251.5,12.60362129]
[1672837434445,4.58052689,1251.8,1251.7,1.19697475]
[1672837434659,1.599,1251.8,1251.7,1.19697475]
[1672837434870,4.58447503,1251.8,1251.7,1.19697475]
[1672837435084,4.58447503,1251.8,1251.7,4.20427475]
[1672837435718,2.98547503,1251.8,1251.7,5.80327475]
[1672837436133,2.98547503,1251.8,1251.7,9.59873688]
[1672837436973,2.98547503,1251.9,1251.7,10.59844171]
[1672837437184,2.98547503,1252.0,1251.8,7.17814171]
[1672837437399,2.98547503,1252.0,1251.9,9.17901254]
[1672837437598,5.48547503,1252.1,1252.0,2.5]
[1672837437807,5.48547503,1252.1,1252.0,4.092]
[1672837438241,2.98547503,1252.1,1252.0,4.092]
[1672837440760,2.98547503,1252.2,1252.0,8.48368502]
[1672837440971,2.98547503,1252.3,1252.1,7.7863]
[1672837441183,2.5,1252.3,1252.2,1.599]
[1672837441393,3.58122856,1252.4,1252.3,1.592]
[1672837441605,6.08122856,1252.4,1252.3,3.184]
[1672837443383,3.58122856,1252.4,1252.3,3.184]
[1672837443799,6.58852856,1252.5,1252.3,3.184]
[1672837444021,9.08852856,1252.5,1252.4,1.587]
[1672837445071,13.2686179,1252.5,1252.4,1.587]
[1672837445489,9.08852856,1252.5,1252.4,1.587]
[1672837446433,13.2686179,1252.5,1252.4,1.587]
[1672837446860,9.08852856,1252.5,1252.4,1.587]
[1672837448225,6.58852856,1252.5,1252.4,1.587]
[1672837448426,9.08852856,1252.5,1252.4,1.587]
[1672837451269,5.5073,1252.5,1252.4,1.587]
[1672837454212,9.08852856,1252.5,1252.4,1.587]
[1672837457444,5.5073,1252.5,1252.4,1.587]
[1672837457722,9.08852856,1252.5,1252.4,1.587]
[1672837458438,5.5073,1252.5,1252.4,1.587]
[1672837459173,3.0073,1252.5,1252.4,1.587]
[1672837459380,5.5073,1252.5,1252.4,1.587]
[1672837459811,9.08852856,1252.5,1252.4,1.587]
[1672837460224,5.5073,1252.5,1252.4,1.587]
[1672837463795,2.5,1252.5,1252.4,1.587]
[1672837467480,6.08122856,1252.5,1252.4,1.587]
[1672837468215,9.08852856,1252.5,1252.4,1.587]
[1672837468630,6.08122856,1252.5,1252.4,1.587]
[1672837468846,9.08852856,1252.5,1252.4,1.587]
[1672837471159,6.58852856,1252.5,1252.4,1.587]
[1672837471582,9.08852856,1252.5,1252.4,1.587]
[1672837472102,6.58852856,1252.5,1252.4,1.587]
[1672837472642,9.08852856,1252.5,1252.4,1.587]
[1672837472853,6.58852856,1252.5,1252.4,1.587]
[1672837473477,7.18738934,1252.5,1252.4,1.587]
[1672837475045,10.76962617,1252.5,1252.4,1.587]
[1672837475252,7.18738934,1252.5,1252.4,1.587]
[1672837478400,11.95668357,1252.5,1252.4,1.587]
[1672837479041,7.18738934,1252.5,1252.4,1.587]
[1672837479963,11.95668357,1252.5,1252.4,1.587]
[1672837480389,7.18738934,1252.5,1252.4,1.587]
[1672837483650,7.18738934,1252.5,1252.4,1.599]
[1672837486388,3.58669249,1252.5,1252.4,1.599]
[1672837486595,6.08669249,1252.5,1252.4,1.599]
[1672837486803,3.58669249,1252.5,1252.4,2.79568502]
[1672837487229,3.58669249,1252.5,1252.4,1.599]
[1672837489645,10.26678183,1252.6,1252.4,1.599]
[1672837490368,7.76678183,1252.6,1252.4,1.599]
[1672837490790,2.5,1252.5,1252.4,1.599]
[1672837491219,10.26678183,1252.6,1252.4,1.599]
[1672837492271,6.08669249,1252.6,1252.4,1.599]
[1672837492480,10.26678183,1252.6,1252.4,1.599]
[1672837493007,7.76678183,1252.6,1252.4,1.599]
[1672837493217,3.58669249,1252.5,1252.4,1.599]
[1672837493427,6.08669249,1252.5,1252.4,1.599]
[1672837493740,3.58669249,1252.5,1252.4,1.599]
[1672837495327,10.26678183,1252.6,1252.4,1.599]
[1672837495535,10.26678183,1252.6,1252.5,1.599]
[1672837496693,6.59399249,1252.6,1252.5,1.599]
[1672837496906,13.27408183,1252.6,1252.5,1.599]
[1672837497114,9.09399249,1252.6,1252.5,1.599]
[1672837497324,13.27408183,1252.6,1252.5,1.599]
[1672837497535,10.77408183,1252.6,1252.5,1.599]
[1672837498061,13.27408183,1252.6,1252.5,1.599]
[1672837498273,10.77408183,1252.6,1252.5,1.599]
[1672837498471,9.09399249,1252.6,1252.5,1.599]
[1672837498784,6.59399249,1252.6,1252.5,1.599]
[1672837500050,3.58669249,1252.6,1252.5,1.599]
[1672837503417,6.08669249,1252.6,1252.5,1.599]
[1672837503945,10.26678183,1252.6,1252.5,1.599]
[1672837504157,7.76678183,1252.6,1252.5,1.599]
[1672837505734,10.26678183,1252.6,1252.5,1.599]
[1672837505944,7.76678183,1252.6,1252.5,1.599]
[1672837507520,10.77408183,1252.6,1252.5,1.599]
[1672837507832,9.09399249,1252.6,1252.5,1.599]
[1672837508042,6.59399249,1252.6,1252.5,1.599]
[1672837508256,6.59399249,1252.6,1252.5,1.59692108]
[1672837508779,6.08669249,1252.6,1252.5,1.59692108]
[1672837508987,9.09399249,1252.6,1252.5,1.59692108]
[1672837509301,13.27408183,1252.6,1252.5,1.59692108]
[1672837511407,9.68738934,1252.6,1252.5,1.59692108]
[1672837515609,6.68008934,1252.6,1252.5,1.59692108]
[1672837515821,9.68738934,1252.6,1252.5,1.59692108]
[1672837516558,6.68008934,1252.6,1252.5,1.59692108]
[1672837516763,9.68738934,1252.6,1252.5,1.59692108]
[1672837520268,7.18738934,1252.6,1252.5,1.59692108]
[1672837523313,10.77635454,1252.6,1252.5,1.59692108]
[1672837523729,12.37535454,1252.6,1252.4,4.57871254]
[1672837525117,3.5889652,1252.5,1252.4,4.57871254]
[1672837525317,2.5,1252.5,1252.4,4.57871254]
[1672837525941,6.0889652,1252.5,1252.4,2.78368502]
[1672837526886,3.5889652,1252.5,1252.4,2.78368502]
[1672837527092,3.5889652,1252.5,1252.4,4.57871254]
[1672837528245,14.87535454,1252.6,1252.4,4.57871254]
[1672837529959,3.5889652,1252.5,1252.4,4.57871254]
[1672837530133,4.5889652,1252.5,1252.4,4.57871254]
[1672837531194,4.5889652,1252.5,1252.4,2.78368502]
[1672837532250,3.5889652,1252.5,1252.4,2.78368502]
[1672837532457,4.5889652,1252.5,1252.4,2.78368502]
[1672837532669,7.7869652,1252.5,1252.3,1.19668502]
[1672837532862,6.5962652,1252.4,1252.2,4.59071254]
[1672837533501,10.77635454,1252.4,1252.2,4.59071254]
[1672837534552,6.5962652,1252.4,1252.2,4.59071254]
[1672837534968,6.5962652,1252.4,1252.2,2.79568502]
[1672837535288,6.5962652,1252.4,1252.2,4.59071254]
[1672837535507,6.5962652,1252.4,1252.2,2.79568502]
[1672837538841,2.98834011,1252.3,1252.2,2.79568502]
[1672837539157,5.48834011,1252.3,1252.2,2.79568502]
[1672837539368,2.98834011,1252.3,1252.2,2.79568502]
[1672837544728,18.6512652,1252.4,1252.2,1.599]
[1672837551864,15.6439652,1252.4,1252.2,1.599]
[1672837552079,18.6512652,1252.4,1252.2,1.599]
[1672837552805,2.98595819,1252.3,1252.2,1.599]
[1672837553858,2.98595819,1252.3,1252.2,3.599]
[1672837555013,2.98595819,1252.3,1252.2,4.79568502]
[1672837557535,2.38896613,1252.3,1252.2,6.57671254]
[1672837563221,2.38896613,1252.3,1252.2,8.38732752]
[1672837563639,2.38896613,1252.3,1252.2,9.58311173]
[1672837564686,2.38896613,1252.3,1252.2,9.58325714]
[1672837565004,2.38896613,1252.3,1252.2,8.38732752]
[1672837565206,2.38896613,1252.3,1252.2,9.58330692]
[1672837565416,2.38896613,1252.3,1252.2,8.38732752]
[1672837568051,2.38896613,1252.3,1252.2,5.38002752]
[1672837568253,2.38896613,1252.3,1252.2,8.38732752]
[1672837568462,5.37492432,1252.3,1252.2,8.38732752]
[1672837568988,5.37492432,1252.3,1252.2,6.38732752]
[1672837569201,2.98595819,1252.3,1252.2,6.38732752]
[1672837569412,2.98595819,1252.3,1252.2,2.78146691]
[1672837570557,9.0962652,1252.4,1252.2,2.78146691]
[1672837570773,9.0962652,1252.4,1252.3,1.599]
[1672837571830,10.36805454,1252.5,1252.3,1.599]
[1672837572146,2.5,1252.4,1252.3,2.79546691]
[1672837573616,6.1879652,1252.5,1252.3,2.79546691]
[1672837575511,3.5889652,1252.4,1252.3,2.79546691]
[1672837575719,6.0889652,1252.4,1252.3,2.79546691]
[1672837577720,2.5,1252.4,1252.3,2.79546691]
[1672837577930,10.36805454,1252.5,1252.3,2.79546691]
[1672837578658,13.37535454,1252.5,1252.3,2.79546691]
[1672837580557,13.37535454,1252.5,1252.3,1.599]
[1672837580768,3.5889652,1252.4,1252.3,1.599]
[1672837580976,6.0889652,1252.4,1252.3,1.599]
[1672837581286,6.0889652,1252.4,1252.3,2.79546691]
[1672837581714,6.0889652,1252.4,1252.3,1.599]
[1672837582765,6.0889652,1252.4,1252.3,1.59543829]
[1672837583712,6.0889652,1252.4,1252.3,1.599]
[1672837584866,3.5889652,1252.4,1252.3,1.599]
[1672837586547,13.37535454,1252.5,1252.3,2.79546691]
[1672837587076,9.1952652,1252.5,1252.3,2.79546691]
[1672837587701,13.37535454,1252.5,1252.3,2.79546691]
[1672837588018,6.1879652,1252.5,1252.3,2.79546691]
[1672837588650,10.36805454,1252.5,1252.3,2.79546691]
[1672837589074,2.5,1252.4,1252.3,2.79546691]
[1672837589389,6.0889652,1252.4,1252.3,1.599]
[1672837590012,6.0889652,1252.4,1252.3,2.79546691]
[1672837590753,3.5889652,1252.4,1252.3,2.79546691]
[1672837592225,6.0889652,1252.4,1252.3,2.79546691]
[1672837592432,3.5889652,1252.4,1252.3,1.599]
[1672837593487,3.5889652,1252.4,1252.3,2.79546691]
[1672837597375,3.5889652,1252.4,1252.3,1.599]
[1672837597579,3.5889652,1252.4,1252.3,2.79546691]
[1672837608938,5.1819652,1252.4,1252.2,4.59049443]
[1672837609143,3.58718175,1252.3,1252.2,2.79546691]
[1672837609353,6.08718175,1252.3,1252.2,2.79546691]
[1672837609569,9.09448175,1252.3,1252.2,1.599]
[1672837609885,9.09448175,1252.3,1252.2,2.79546691]
[1672837610717,6.59448175,1252.3,1252.2,2.79546691]
[1672837611566,3.58718175,1252.3,1252.2,2.79546691]
[1672837617023,11.86027109,1252.4,1252.2,2.79546691]
[1672837617244,14.86757109,1252.4,1252.2,2.79546691]
[1672837617437,3.58663952,1252.3,1252.2,2.79546691]
[1672837618081,14.86702886,1252.4,1252.2,2.79546691]
[1672837618813,10.68693952,1252.4,1252.2,4.59049443]
[1672837619442,14.86702886,1252.4,1252.2,4.59049443]
[1672837620379,8.18693952,1252.4,1252.2,4.59049443]
[1672837621864,12.36702886,1252.4,1252.2,4.59049443]
[1672837622486,8.18693952,1252.4,1252.2,4.59049443]
[1672837623115,5.17963952,1252.4,1252.2,4.59049443]
[1672837623327,1.593,1252.4,1252.3,2.99149443]
[1672837623748,9.36572886,1252.5,1252.3,4.59049443]
[1672837624802,8.96472886,1252.5,1252.3,4.59049443]
[1672837625116,4.78463952,1252.5,1252.3,4.59049443]
[1672837625316,4.78463952,1252.5,1252.3,2.79546691]
[1672837625858,2.98929873,1252.4,1252.3,3.39402752]
[1672837626064,5.48929873,1252.4,1252.3,4.59117113]
[1672837626276,2.98929873,1252.4,1252.3,4.59117113]
[1672837627542,2.98929873,1252.4,1252.3,2.79614361]
[1672837631222,0.98929873,1252.4,1252.3,2.79614361]
[1672837639318,0.98929873,1252.4,1252.3,4.59117113]
[1672837641415,0.98929873,1252.4,1252.3,2.79614361]
[1672837645420,5.58142685,1252.5,1252.3,2.79614361]
[1672837649623,3.58142685,1252.5,1252.3,2.79614361]
[1672837655085,3.58142685,1252.5,1252.3,4.59117113]
[1672837657937,3.58142685,1252.5,1252.4,1.19714361]
[1672837659185,0.57412685,1252.5,1252.4,1.19714361]
[1672837661290,0.57412685,1252.5,1252.3,4.59117113]
[1672837661498,3.0073,1252.4,1252.3,2.79614361]
[1672837663927,1.0073,1252.4,1252.3,2.79614361]
[1672837664755,4.58631144,1252.4,1252.3,2.79614361]
[1672837664972,3.57901144,1252.4,1252.3,2.79614361]
[1672837665713,10.25910078,1252.5,1252.3,4.59117113]
[1672837666345,10.25910078,1252.5,1252.3,2.79614361]
[1672837666545,3.57901144,1252.4,1252.3,2.79614361]
[1672837667279,10.25910078,1252.5,1252.3,2.79614361]
[1672837667703,3.57901144,1252.4,1252.3,2.79614361]
[1672837668221,1.57901144,1252.4,1252.3,2.79614361]
[1672837670231,6.68008934,1252.5,1252.3,2.79614361]
[1672837670647,4.68008934,1252.5,1252.3,2.79614361]
[1672837672126,4.68008934,1252.5,1252.3,4.59117113]
[1672837672649,0.5,1252.5,1252.3,4.59117113]
[1672837672856,4.68008934,1252.5,1252.3,4.59117113]
[1672837673062,4.68008934,1252.5,1252.3,2.79614361]
[1672837673690,6.26608934,1252.5,1252.3,2.78914361]
[1672837678532,2.086,1252.5,1252.3,4.58417113]
[1672837678735,1.586,1252.5,1252.3,2.78914361]
[1672837679266,1.586,1252.5,1252.3,4.58417113]
[1672837679890,1.586,1252.5,1252.4,1.19714361]
[1672837680095,1.586,1252.5,1252.3,4.58417113]
[1672837681369,1.586,1252.5,1252.4,1.19714361]
[1672837683047,5.16615474,1252.5,1252.4,1.19714361]
[1672837683683,3.58015474,1252.5,1252.3,7.59147113]
[1672837683996,3.58015474,1252.5,1252.4,1.19736984]
[1672837684312,3.58015474,1252.5,1252.3,7.59169736]
[1672837684944,3.58015474,1252.5,1252.4,1.19736984]
[1672837688099,3.58015474,1252.5,1252.4,2.79636984]
[1672837688306,2.98367565,1252.5,1252.4,7.38616923]
[1672837688621,2.98367565,1252.5,1252.4,4.99382869]
[1672837689039,2.98367565,1252.5,1252.4,7.3869704]
[1672837689244,2.98367565,1252.5,1252.4,4.99382869]
[1672837690192,2.98367565,1252.5,1252.4,8.00112869]
[1672837691361,2.98367565,1252.5,1252.4,9.19763465]
[1672837691569,2.98367565,1252.5,1252.4,11.69763465]
[1672837692293,2.98367565,1252.5,1252.4,10.50112869]
[1672837692932,2.98367565,1252.5,1252.4,11.69758536]
[1672837693356,2.98367565,1252.5,1252.4,10.50112869]
[1672837693563,2.98367565,1252.5,1252.4,11.6973041]
[1672837693767,2.98367565,1252.5,1252.4,8.6900041]
[1672837693973,2.98367565,1252.5,1252.4,11.6973041]
[1672837694403,2.98367565,1252.5,1252.4,10.50112869]
[1672837694930,0.98367565,1252.5,1252.4,10.50112869]
[1672837695245,6.08015474,1252.7,1252.4,10.50112869]
[1672837695246,6.08015474,1252.7,1252.4,11.69705075]
[1672837695455,6.08015474,1252.7,1252.6,1.599]
[1672837696509,11.31893839,1252.9,1252.6,1.599]
[1672837696510,8.34944897,1252.9,1252.6,9.19705075]
[1672837696713,3.58015474,1252.9,1252.8,1.599]
[1672837697457,22.83654408,1253.0,1252.8,1.599]
[1672837697870,18.73754408,1253.0,1252.9,1.599]
[1672837698077,14.55745474,1253.0,1252.9,1.599]
[1672837698294,6.58745474,1253.0,1252.9,1.599]
[1672837698711,3.58015474,1253.0,1252.9,1.599]
[1672837699346,6.08015474,1253.0,1252.9,1.599]
[1672837700403,8.46618341,1253.0,1252.9,1.599]
[1672837700926,6.07227928,1253.0,1252.9,1.599]
[1672837701442,3.57227928,1253.0,1252.9,1.599]
[1672837701761,2.5,1253.0,1252.9,1.599]
[1672837702711,8.46618341,1253.0,1252.9,1.599]
[1672837703234,6.46618341,1253.0,1252.9,1.599]
[1672837704812,6.46618341,1253.0,1252.9,4.6063]
[1672837705016,5.96618341,1253.0,1252.9,4.6063]
[1672837705753,7.67128159,1253.1,1252.9,4.6063]
[1672837706175,4.099,1253.1,1252.9,4.6063]
[1672837706595,5.96618341,1253.0,1252.9,4.6063]
[1672837707127,7.26914068,1253.1,1252.9,4.6063]
[1672837707651,3.698,1253.1,1252.9,4.6063]
[1672837708075,5.96618341,1253.0,1252.9,4.6063]
[1672837709019,5.96618341,1253.0,1252.9,1.599]
[1672837710072,3.96618341,1253.0,1252.9,1.599]
[1672837712903,11.43782915,1253.1,1252.9,1.599]
[1672837713325,7.27022884,1253.1,1252.9,1.599]
[1672837713538,3.698,1253.1,1252.9,1.599]
[1672837714171,3.57354718,1253.0,1252.9,1.599]
[1672837714802,7.27078274,1253.1,1252.9,1.599]
[1672837716694,11.43902927,1253.1,1252.9,1.599]
[1672837716902,6.58008274,1253.0,1252.9,1.599]
[1672837717104,9.08008274,1253.0,1252.9,1.599]
[1672837717834,13.24832927,1253.0,1252.9,1.599]
[1672837719005,9.67554653,1253.0,1252.9,1.599]
[1672837719945,17.64554653,1253.0,1252.9,1.599]
[1672837720150,17.64554653,1253.0,1252.8,1.599]
[1672837720151,24.40451934,1253.0,1252.7,1.586]
[1672837720367,2.97659323,1252.8,1252.7,1.586]
[1672837722895,2.97659323,1252.9,1252.7,1.599]
[1672837723106,2.97659323,1252.9,1252.8,1.599]
[1672837723316,4.47659323,1252.9,1252.8,4.6063]
[1672837724044,2.97659323,1252.9,1252.8,4.6063]
[1672837724573,4.47659323,1252.9,1252.8,4.6063]
[1672837725209,1.5,1252.9,1252.8,4.6063]
[1672837725414,4.47715476,1252.9,1252.8,4.6063]
[1672837725623,2.97715476,1252.9,1252.8,4.6063]
[1672837725833,4.47715476,1252.9,1252.8,4.6063]
[1672837726260,3.47715476,1252.9,1252.8,4.6063]
[1672837726987,1.97715476,1252.9,1252.8,4.6063]
[1672837732558,5.36032077,1252.9,1252.8,4.6063]
[1672837732984,7.66055137,1253.0,1252.8,4.6063]
[1672837733715,6.07255137,1253.0,1252.9,1.592]
[1672837734767,2.5,1253.0,1252.9,1.592]
[1672837735086,8.95195137,1253.1,1252.9,1.592]
[1672837735821,7.77055137,1253.1,1252.9,1.592]
[1672837739817,4.198,1253.1,1252.9,1.592]
[1672837740966,4.198,1253.1,1252.9,4.5993]
[1672837743604,7.77055137,1253.1,1252.9,4.5993]
[1672837743913,7.76455137,1253.1,1252.9,4.6063]
[1672837744536,19.90252797,1253.1,1252.9,1.599]
[1672837745068,15.73455137,1253.1,1252.9,1.599]
[1672837745481,3.57255137,1253.0,1252.9,1.599]
[1672837746434,19.90252797,1253.1,1252.9,1.599]
[1672837746747,15.73455137,1253.1,1252.9,1.599]
[1672837747581,19.90252797,1253.1,1252.9,1.599]
[1672837748010,15.73455137,1253.1,1252.9,4.6063]
[1672837748426,15.73455137,1253.1,1252.9,1.599]
[1672837748641,15.73455137,1253.1,1252.9,4.6063]
[1672837750744,19.90252797,1253.1,1252.9,4.6063]
[1672837751695,19.90252797,1253.1,1252.9,1.599]
[1672837752215,19.90252797,1253.1,1252.9,4.6063]
[1672837752838,3.57255137,1253.0,1252.9,4.6063]
[1672837753895,2.5,1252.9,1252.8,1.585]
[1672837754632,2.5,1252.9,1252.8,2.78092206]
[1672837754842,4.57255137,1253.0,1252.8,2.78092206]
[1672837755054,4.57255137,1253.0,1252.9,3.0073]
[1672837757471,8.74052797,1253.0,1252.9,3.0073]
[1672837757682,2.5,1252.9,1252.8,1.585]
[1672837757881,6.07255137,1252.9,1252.8,1.585]
[1672837760101,10.24052797,1252.9,1252.8,1.585]
[1672837761681,6.6679766,1252.9,1252.8,1.585]
[1672837762624,10.24952821,1252.9,1252.8,1.585]
[1672837762830,18.21952821,1252.9,1252.8,1.585]
[1672837763037,14.6379766,1252.9,1252.8,1.585]
[1672837763672,14.6379766,1252.9,1252.8,1.599]
[1672837766940,22.41000617,1252.9,1252.8,1.599]
[1672837767879,17.6452766,1252.9,1252.8,1.599]
[1672837768510,14.6379766,1252.9,1252.8,1.599]
[1672837770397,18.21798865,1252.9,1252.8,1.599]
[1672837770816,18.21799117,1252.9,1252.8,1.599]
[1672837771032,14.6379766,1252.9,1252.8,1.599]
[1672837771347,18.21782489,1252.9,1252.8,1.599]
[1672837773243,14.6379766,1252.9,1252.8,1.599]
[1672837773768,14.6379766,1252.9,1252.7,1.585]
[1672837773978,3.57961386,1252.8,1252.7,1.585]
[1672837779341,18.21759046,1252.9,1252.7,1.585]
[1672837782171,3.57961386,1252.8,1252.7,1.585]
[1672837784696,18.21759046,1252.9,1252.7,1.585]
[1672837786481,3.57961386,1252.8,1252.7,1.585]
[1672837787224,18.21759046,1252.9,1252.7,1.585]
[1672837787955,14.04961386,1252.9,1252.7,1.585]
[1672837788799,14.04961386,1252.9,1252.8,1.599]
[1672837789017,3.57961386,1252.9,1252.8,1.599]
[1672837790060,6.07961386,1252.9,1252.8,1.599]
[1672837790487,10.24759046,1252.9,1252.8,1.599]
[1672837791006,6.6679766,1252.9,1252.8,1.599]
[1672837791954,10.24965677,1252.9,1252.8,1.599]
[1672837792379,4.1679766,1252.9,1252.8,1.599]
[1672837795633,6.6679766,1252.9,1252.8,1.59160101]
[1672837795948,4.1679766,1252.9,1252.8,1.59160101]
[1672837796676,6.6679766,1252.9,1252.8,1.59160101]
[1672837797411,6.6679766,1252.9,1252.7,1.599]
[1672837797412,17.6452766,1252.9,1252.7,1.599]
[1672837797833,4.1679766,1252.8,1252.7,1.599]
[1672837798462,7.75193764,1252.8,1252.7,1.599]
[1672837801822,3.58396104,1252.8,1252.7,2.79492206]
[1672837804357,3.58396104,1252.8,1252.7,1.599]
[1672837807089,4.1679766,1252.8,1252.7,1.599]
[1672837807297,7.75204343,1252.8,1252.7,1.599]
[1672837807824,4.1679766,1252.8,1252.7,1.599]
[1672837808034,7.75209423,1252.8,1252.7,1.599]
[1672837808239,4.1679766,1252.8,1252.7,1.599]
[1672837812556,7.75141466,1252.8,1252.7,1.599]
[1672837816651,3.58343806,1252.8,1252.7,1.599]
[1672837816968,7.75141466,1252.8,1252.7,1.599]
[1672837818333,3.58343806,1252.8,1252.7,1.599]
[1672837819907,7.75141466,1252.8,1252.7,1.599]
[1672837822638,15.72141466,1252.8,1252.7,1.599]
[1672837823588,12.1379766,1252.8,1252.7,1.599]
[1672837823791,12.1379766,1252.8,1252.7,1.586]
[1672837824112,15.72173709,1252.8,1252.7,1.586]
[1672837826220,11.55376049,1252.8,1252.7,1.586]
[1672837827167,15.72173709,1252.8,1252.7,1.586]
[1672837828320,11.55376049,1252.8,1252.7,1.586]
[1672837829160,11.55376049,1252.8,1252.7,2.78192206]
[1672837829793,11.55376049,1252.8,1252.7,1.586]
[1672837830420,15.72173709,1252.8,1252.7,1.586]
[1672837835989,12.1379766,1252.8,1252.7,1.586]
[1672837837245,14.6379766,1252.8,1252.7,1.586]
[1672837837455,12.1379766,1252.8,1252.7,1.586]
[1672837843876,14.6379766,1252.8,1252.7,1.586]
[1672837844190,12.1379766,1252.8,1252.7,1.586]
[1672837844403,14.6379766,1252.8,1252.7,1.586]
[1672837844612,12.1379766,1252.8,1252.7,1.586]
[1672837845337,14.6379766,1252.8,1252.7,1.586]
[1672837845661,12.1379766,1252.8,1252.7,1.586]
[1672837847551,14.6379766,1252.8,1252.7,1.586]
[1672837847757,12.1379766,1252.8,1252.7,1.586]
[1672837848500,12.13263551,1252.8,1252.7,1.586]
[1672837848811,14.63263551,1252.8,1252.7,1.586]
[1672837850704,12.13263551,1252.8,1252.7,1.586]
[1672837851230,14.63263551,1252.8,1252.7,1.586]
[1672837852064,18.21548932,1252.8,1252.7,1.586]
[1672837852274,12.13263551,1252.8,1252.7,1.586]
[1672837852482,14.63263551,1252.8,1252.7,1.586]
[1672837852700,18.21548479,1252.8,1252.7,1.586]
[1672837853013,12.13263551,1252.8,1252.7,1.586]
[1672837853221,14.63263551,1252.8,1252.7,1.586]
[1672837853856,12.13263551,1252.8,1252.7,1.586]
[1672837854066,15.71477115,1252.8,1252.7,1.586]
[1672837854590,15.71482891,1252.8,1252.7,1.586]
[1672837855738,15.71482891,1252.8,1252.7,2.78192206]
[1672837855948,11.54685231,1252.8,1252.7,2.78192206]
[1672837856897,15.71482891,1252.8,1252.7,2.78192206]
[1672837857103,11.54685231,1252.8,1252.7,2.78192206]
[1672837857846,11.54685231,1252.8,1252.7,1.586]
[1672837858060,15.71482891,1252.8,1252.7,1.586]
[1672837858271,12.13263551,1252.8,1252.7,1.586]
[1672837858688,14.63263551,1252.8,1252.7,1.586]
[1672837859732,12.13263551,1252.8,1252.7,1.586]
[1672837860158,14.63263551,1252.8,1252.7,1.586]
[1672837860368,12.13263551,1252.8,1252.7,1.586]
[1672837860580,14.63263551,1252.8,1252.7,1.586]
[1672837860799,12.13263551,1252.8,1252.7,1.586]
[1672837861321,15.7128421,1252.8,1252.7,1.586]
[1672837863947,15.7128421,1252.8,1252.7,2.78192206]
[1672837864164,15.7128421,1252.8,1252.7,1.586]
[1672837865736,15.71296297,1252.8,1252.7,1.586]
[1672837866157,14.71296297,1252.8,1252.7,1.586]
[1672837868467,11.13263551,1252.8,1252.7,1.586]
[1672837868679,13.63263551,1252.8,1252.7,1.586]
[1672837868888,12.63263551,1252.8,1252.7,1.586]
[1672837869837,10.13263551,1252.8,1252.7,1.586]
[1672837871094,12.7132319,1252.8,1252.7,1.586]
[1672837871515,9.13263551,1252.8,1252.7,1.586]
[1672837873201,4.1679766,1252.8,1252.7,1.586]
[1672837873511,15.71827116,1252.8,1252.7,1.586]
[1672837873724,15.71827116,1252.8,1252.6,7.58505075]
[1672837873928,3.58029456,1252.7,1252.6,4.57775075]
[1672837874566,14.71827116,1252.8,1252.6,7.58505075]
[1672837875091,12.1379766,1252.8,1252.6,7.58505075]
[1672837875620,12.1379766,1252.8,1252.6,4.57775075]
[1672837875933,12.1379766,1252.8,1252.6,7.58505075]
[1672837880975,12.1379766,1252.8,1252.7,1.19592206]
[1672837881396,12.1379766,1252.8,1252.6,7.58505075]
[1672837881815,12.1379766,1252.8,1252.6,4.57775075]
[1672837882020,12.1379766,1252.8,1252.6,7.58505075]
[1672837882863,12.1379766,1252.8,1252.7,1.19592206]
[1672837884448,12.1379766,1252.8,1252.6,7.58505075]
[1672837884858,12.1379766,1252.8,1252.7,1.19592206]
[1672837886865,12.1379766,1252.8,1252.6,7.58505075]
[1672837887598,12.1379766,1252.8,1252.7,1.19592206]
[1672837887912,12.1379766,1252.8,1252.6,7.58505075]
[1672837888123,12.1379766,1252.8,1252.7,1.19592206]
[1672837888437,12.1379766,1252.8,1252.6,7.58505075]
[1672837888653,12.1379766,1252.8,1252.7,1.19592206]
[1672837889180,12.1379766,1252.8,1252.6,7.58505075]
[1672837889487,15.71972832,1252.8,1252.7,1.19592206]
[1672837891280,15.71972832,1252.8,1252.6,7.58505075]
[1672837891491,15.71972832,1252.8,1252.7,1.19592206]
[1672837892642,11.55175172,1252.8,1252.7,1.19592206]
[1672837895800,15.71972832,1252.8,1252.7,1.19592206]
[1672837897477,11.55175172,1252.8,1252.7,1.19592206]
[1672837902635,11.55175172,1252.8,1252.6,7.58505075]
[1672837902843,11.55175172,1252.8,1252.7,1.19592206]